Cogmind - Beta 17 @@@ ROGUE MODE // 2026.06.24 @ 00:08:52 Player: Ren Result: Destroyed by QE-B4V(R) with Subdweller Laser Performance ------------- Evolutions (0) 0 Regions Visited (2) 400 Robots Destroyed (23) 115 Value Destroyed (467) 467 Prototype IDs (18) 360 Alien Tech Used (0) 0 Bonus (0) 0 TOTAL SCORE: 1342 Bonus ------- None Cogmind --------- Core Integrity 0/250 Matter 244/300 Energy 110/125 System Corruption 0% Temperature Cool (6) Movement Walking (130) Location -10/Subcaves Parts ------- > --- POWER (1) -------- Light Ion Engine > --- PROPULSION (2) --- Cargo Legs > --- UTILITY (2+2) ---- Medium Storage Unit Structural Scanner (+) > --- WEAPON (2) ------- Barrage Gun Battle Cannon > --- INVENTORY (10) --- Flight Unit Improved Terrain Scanner Makeshift Light Armor Plating Makeshift Sword Peak State ------------ > --- POWER ------------ Subdweller Power Source > --- PROPULSION ------- Cargo Legs > --- UTILITY ---------- Structural Scanner Scrap Shield > --- WEAPON ----------- Barrage Gun Battle Cannon > --- INVENTORY -------- Flight Unit Medium Storage Unit Improved Terrain Scanner Makeshift Light Armor Plating Mining Claw [Rating: 29] Favorites ----------- Power Light Ion Engine Engine Light Ion Engine Propulsion Cargo Legs Leg Cargo Legs Wheel Wheel Flight Unit Flight Unit Utility Structural Scanner Device Structural Scanner Storage Small Storage Unit Protection Scrap Shield Weapon Battle Cannon Energy Gun EM Pulse Gun Ballistic Gun Barrage Gun Ballistic Cannon Battle Cannon Slashing Weapon Mining Claw Build | -11 -10 -10 ------- Run | Yrd Mat Sub Slots Evolved . | . . . Power . | . . . Propulsion . | . . . Utility . | . . . Weapon . | . . . Parts Attached 24 | 11 4 9 Power 6 | 4 . 2 Engine 6 | 4 . 2 Core . | . . . Reactor . | . . . Propulsion 6 | 3 2 1 Treads . | . . . Leg 1 | . . 1 Wheel 3 | 3 . . Hover . | . . . Flight 2 | . 2 . Utility 6 | 2 . 4 Device 2 | 1 . 1 Storage 3 | 1 . 2 Processor . | . . . Hackware . | . . . Protection 1 | . . 1 Artifact . | . . . Weapon 6 | 2 2 2 Energy Gun 1 | 1 . . Energy Cannon . | . . . Ballistic Gun 3 | 1 1 1 Ballistic Cannon 1 | . . 1 Launcher . | . . . Special Weapon . | . . . Impact Weapon . | . . . Slashing Weapon 1 | . 1 . Piercing Weapon . | . . . Special Melee Weapon . | . . . Unidentified Prototypes . | . . . Parts Lost 2 | . . 2 Power 1 | . . 1 Propulsion . | . . . Utility 1 | . . 1 Weapon . | . . . Highest Loss Streak 1 | . . 1 To Critical Strikes . | . . . Average Backups 4 | 1 4 4 Power . | . . . Propulsion 1 | . 1 1 Utility 2 | . 1 2 Weapon . | . . . Tool/Special . | . . . Unused Backups 3 | . . 3 Power . | . . . Propulsion 1 | . . 1 Utility 2 | . . 2 Weapon . | . . . Tool/Special . | . . . Average Slot Usage (%) 71 | . 87 68 Engine 10 | . 12 10 Leg 7 | . . 9 Wheel 1 | . 8 . Flight 7 | . 19 4 Device 15 | . 14 16 Protection 3 | . . 4 Ballistic Gun 11 | . 13 10 Ballistic Cannon 6 | . . 7 Slashing Weapon 5 | . 9 5 Peak Build Rating 29 | 7 7 29 Average Rating 18 | 5 6 22 On Entrance 4 | . 7 6 Avg Prop Armor Cover (%) . | . . . Naked Turns . | . . . Heaviest Build 30 | 14 13 30 Greatest Support 55 | 26 20 55 Greatest Overweight (x) . | . . . Average Overweight (x) . | . . . Largest Inventory Capacity 35 | 8 8 35 Average Capacity 5 | 7 5 5 Most Carried 7 | 4 7 5 Average Carried 4 | 1 4 4 Final Capacity 10 | 8 5 10 Final Carried 5 | 3 5 4 Class Distribution -------------------- 77% | Mutant 22% | Scavenger-Mutant Dominant Class ---------------- Scavenger-Mutant | -10/Materials Mutant | -10/Subcaves Resources | -11 -10 -10 ----------- Run | Yrd Mat Sub Matter Collected 787 | 343 68 376 Remotely . | . . . Salvage Created 722 | 187 157 378 Parts 58 | 16 15 27 Haulers Intercepted . | . . . Recyclers Shooed 1 | . 1 . Parts Field Recycled . | . . . Retrieved Matter . | . . . Parts Self-Destructed 3 | . . 3 Prevented . | . . . Parts Restored . | . . . Kills | -11 -10 -10 ------- Run | Yrd Mat Sub Combat Hostiles Destroyed 14 | . 3 11 Guns 10 | . 2 8 Cannons 3 | . . 3 AOE 1 | . 1 . Classes Destroyed 5 | 2 2 1 Builder 2 | . 2 . Tunneler 5 | 5 . . Recycler 2 | 1 1 . Swarmer 5 | . 3 2 Subdweller 9 | . . 9 Best Kill Streak 4 | 4 3 3 Combat Bots Only 3 | . 3 3 Max Kills in Single Turn 2 | 1 2 1 Gunslinging 1 | . 1 . Exploded 1 | . 1 . Melee . | . . . Uniques/NPCs Destroyed . | . . . Combat | -11 -10 -10 -------- Run | Yrd Mat Sub Hostile Shots Fired 69 | . 8 61 Missed 18 | . 3 15 Hits 51 | . 5 46 Projectile 51 | . 5 46 Critical Strikes 1 | . . 1 Damage Taken 1002 | 11 78 913 Core 261 | . 40 221 Absorbed by Shields . | . . . Regen/Repaired (Parts) 50 | . 50 . Core Remaining (%) 100 | 100 . . Volleys Fired 55 | 11 6 38 Largest 2 | 2 2 2 Hottest 61 | 60 60 61 Shots Fired 110 | 22 12 76 Gun 87 | 22 12 53 Cannon 23 | . . 23 Launcher . | . . . Special . | . . . Kinetic 93 | 11 6 76 Thermal . | . . . Explosive . | . . . Electromagnetic 17 | 11 6 . Robot Hit Streak 12 | 7 3 12 Robot Miss Streak 4 | 3 2 4 Penetration Max . | . . . Secondary Targets 2 | . 1 1 Max Gunslinging Chain 1 | . 1 1 Shots Hit Robots 79 | 14 11 54 Core Hits 34 | 7 5 22 Critical Kills . | . . . Critical Parts Destroyed . | . . . Critical Strikes 1 | . . 1 Blast 1 | . . 1 Melee Attacks 41 | . 12 29 Impact . | . . . Slashing 41 | . 12 29 Piercing . | . . . Sneak Attacks 8 | . 6 2 Combat Hostiles . | . . . Follow-up Attacks . | . . . Damage Inflicted 1332 | 211 339 782 Guns 737 | 169 60 508 Cannons 274 | . . 274 Explosions 76 | 42 34 . Melee 245 | . 245 . Ramming . | . . . Kinetic 870 | 62 26 782 Thermal 76 | 42 34 . Explosive . | . . . Electromagnetic 141 | 107 34 . Impact . | . . . Slashing 245 | . 245 . Piercing . | . . . Highest Corruption . | . . . Average Corruption . | . . . Corruption Purged . | . . . Corruption Blocked . | . . . Overload Shots . | . . . Overflow Damage 30 | . 23 7 Projectiles 7 | . . 7 Explosions . | . . . Melee 23 | . 23 . Knockbacks 5 | . . 5 Impact . | . . . Kinetic 5 | . . 5 Secondary . | . . . Self-Inflicted Damage 51 | 11 40 . Shots 2 | 1 1 . Rammed . | . . . Targets Rammed . | . . . Kicked . | . . . Crushed . | . . . Highest Temperature 219 | 12 32 219 Average Temperature 62 | 12 22 131 Received Heat Transfer 475 | . . 475 Siege Activations . | . . . Martial Activations . | . . . Shielding Activations . | . . . Robots Disrupted . | . . . Combat Hostiles . | . . . Robots Corrupted . | . . . Combat Hostiles . | . . . Parts Fried . | . . . Impact Corruptions . | . . . Robots Melted . | . . . Combat Hostiles . | . . . Parts Melted 1 | 1 . . Heat Transferred 100 | 50 50 . Parts Sabotaged . | . . . Parts Stolen . | . . . Parts Stripped . | . . . Power Chain Reactions 2 | 1 1 . Alert | -11 -10 -10 ------- Run | Yrd Mat Sub Maximum Alert Level . | . . . Low Security (%) 100 | 100 100 . Level 1 . | . . . Level 2 . | . . . Level 3 . | . . . Level 4 . | . . . Level 5 . | . . . High Security . | . . . Max Security . | . . . Peak Influence 74 | 10 74 . Initial 3 | . 3 . Average 25 | 3 33 . Influence Increases 197 | 30 112 55 Destroy 0b10 Robot/C 100 | . 60 40 Destroy 0b10 Robot/NC 45 | 30 15 . Destroy Leader 10 | . 10 . Successful Hack 23 | . 23 . Destroy Structure 4 | . 4 . Lose Combat Pursuer 15 | . . 15 Influence Decreases 197 | 25 117 55 Entered New Map 2 | . 2 . Time Decay 195 | 25 115 55 Squads Dispatched . | . . . Investigation . | . . . Extermination . | . . . Reinforcement . | . . . Assault . | . . . Garrison . | . . . Intercept . | . . . Searches Triggered . | . . . Construction Impeded . | . . . Haulers Reinforced . | . . . Active Scanning Responses . | . . . Cargo Convoy Interrupts . | . . . Stealth | -11 -10 -10 --------- Run | Yrd Mat Sub Distress Signals . | . . . Communications Jammed . | . . . Distress Signals . | . . . Times Spotted 15 | . 3 12 Peak Tracking Total 3 | . 3 3 Tactical Retreats 1 | . . 1 Traps | -11 -10 -10 ------- Run | Yrd Mat Sub Traps Triggered . | . . . Indirectly . | . . . Trap Hack Attempts . | . . . Triggered . | . . . Disarmed . | . . . Reprogrammed . | . . . Reused . | . . . Traps Extracted . | . . . Installed . | . . . Triggered . | . . . Machines | -11 -10 -10 ---------- Run | Yrd Mat Sub Machines Disabled 1 | . . 1 Max in Single Turn 1 | . . 1 Machines Repaired . | . . . Machines Dismantled . | . . . Machines Sabotaged . | . . . Overloaded Fab Kills . | . . . Hacking | -11 -10 -10 --------- Run | Yrd Mat Sub Machines Accessed 5 | . 4 1 Terminals 3 | . 3 . Fabricators . | . . . Repair Stations 1 | . 1 . Recycling Units . | . . . Scanalyzers . | . . . Garrison Access . | . . . Total Hacks 20 | . 19 1 Successful 13 | . 12 1 Failed 7 | . 7 . Catastrophic . | . . . Database Lockouts . | . . . Manual 4 | . 4 . Terminals 12 | . 12 . Fabricators . | . . . Repair Stations 7 | . 7 . Recycling Units . | . . . Scanalyzers . | . . . Garrison Access . | . . . Terminal Hacks 5 | . 4 1 Prototype ID Bank 2 | . 2 . Hauler Manifests 1 | . 1 . Registered Components 1 | . 1 . Proto ID Catalog 1 | . . 1 Fabricator Hacks . | . . . Repair Station Hacks 6 | . 6 . Scan Component 3 | . 3 . Repair 3 | . 3 . Recycling Unit Hacks . | . . . Scanalyzer . | . . . Garrison Access Hacks . | . . . Unauthorized Hacks 2 | . 2 . Terminals 2 | . 2 . Botnet 2 | . 2 . Fabricators . | . . . Repair Stations . | . . . Recycling Units . | . . . Scanalyzers . | . . . Garrison Access . | . . . Data Cores Recovered . | . . . Used . | . . . Hacking Detections 3 | . 3 . Full Trace Events . | . . . Feedback Events . | . . . Feedback Blocked . | . . . Robot Schematics Acquired . | . . . Robots Built . | . . . Authchips . | . . . Time . | . . . Total Robot Build Rating . | . . . Part Schematics Acquired . | . . . Parts Built . | . . . Authchips . | . . . Time . | . . . Total Part Build Rating . | . . . Part Studies Acquired . | . . . Parts Repaired 3 | . 3 . Time 78 | . 78 . Parts Recycled . | . . . Recycled Matter . | . . . Retrieved Matter . | . . . Retrieved Components . | . . . Parts Scanalyzed . | . . . Part Schematics Acquired . | . . . Parts Damaged . | . . . Bothacking | -11 -10 -10 ------------ Run | Yrd Mat Sub Used RIF Installer . | . . . Robots Hacked . | . . . Non-combat . | . . . Combat . | . . . Robot Hacks Applied . | . . . Relay Couplers Released . | . . . Fabnet Peak Effective % . | . . . Robots Rewired . | . . . Allies Hacked . | . . . Hacks Repelled . | . . . Allies | -11 -10 -10 -------- Run | Yrd Mat Sub Total Allies . | . . . Largest Group . | . . . Highest-Rated Group . | . . . Highest-Rated Ally . | . . . Total Orders . | . . . Ally Attacks . | . . . Total Damage . | . . . Kills . | . . . Allies Corrupted . | . . . Allies Melted . | . . . Intel | -11 -10 -10 ------- Run | Yrd Mat Sub Active Infowar (turns) 1499 | 16 240 1243 Structural 1237 | . . 1237 Seismic 730 | 16 240 474 Robot Analysis Total . | . . . Derelict Logs Recovered 2 | . . 2 Drone Launches . | . . . Drone Recoveries . | . . . Exploration | -11 -10 -10 ------------- Run | Yrd Mat Sub Turns Passed 1583 | 97 240 1246 Spaces Moved 1306 | 51 206 1049 Core 1 | 1 . . Treads . | . . . Legs 640 | . . 640 Wheels 98 | 50 48 . Hover . | . . . Flight 567 | . 158 409 Fastest Speed 37 | 50 37 37 Average Speed 86 | 84 47 93 Slowest Speed 130 | 100 80 130 Overloaded Moves . | . . . Propulsion Burnouts . | . . . Robots Hopped . | . . . Potential Cave-ins . | . . . Cave-ins Triggered . | . . . Exploration Rate (%) 32 | 3 23 71 Regions Visited 2 Branch Regions 1 Pre-discovered Areas 1 | . . 1 Known Exits Taken . | . . . Unknown Exits Taken 2 | 1 1 . Scrap Searched 2 | . . 2 Spaces Dug . | . . . Terrain Destroyed 5 | . 3 2 Melee . | . . . Projectile 2 | . . 2 AOE 3 | . 3 . Terrain Rammed . | . . . Walls Destroyed . | . . . Machines Disabled . | . . . Actions | -11 -10 -10 --------- Run | Yrd Mat Sub Total 1580 | 78 314 1188 Wait 105 | . 70 35 Move 1304 | 50 205 1049 Hop . | . . . Pick Up 18 | 3 9 6 Fast Attach 15 | 7 1 7 Attach 4 | . 1 3 Detach 1 | . 1 . Swap 13 | 4 3 6 Drop 22 | 3 6 13 Fire 55 | 11 6 38 Melee 41 | . 12 29 Ram . | . . . Kick . | . . . Crush . | . . . Escape Stasis . | . . . Rewire . | . . . Trap . | . . . Miscellaneous 2 | . . 2 Route ------- -11/Scrapyard -10/Materials -10/Subcaves (discovered 2 exits: [*Mat x2]) History --------- Turn | Location | Event 15 | -11/Scrapyard | Discovered new exit (range 16) 98 | -11/Scrapyard | Entered Materials 202 | -10/Materials | Repaired Lgt. Ion Engine 230 | -10/Materials | Repaired EM Pulse Gun 276 | -10/Materials | Discovered new exit (range 7) 329 | -10/Materials | Repaired Structural Scanner 338 | -10/Materials | Entered Subcaves 339 | -10/Subcaves | Approached by a straggling Scientist 396 | -10/Subcaves | A swath of the cavern ceiling suddenly collapsed 401 | -10/Subcaves | Shifting Twisted Machinery released Sub. Laser 404 | -10/Subcaves | Shifting Twisted Machinery released Battle Cannon 412 | -10/Subcaves | Discovered new exit (range 7) 422 | -10/Subcaves | A swath of the cavern ceiling suddenly collapsed 472 | -10/Subcaves | Shifting Twisted Machinery released Barrage Gun 488 | -10/Subcaves | Shifting Twisted Machinery released Battle Cannon 497 | -10/Subcaves | Build established: Scavenger-Mutant 537 | -10/Subcaves | Visited 4L-MR0's lab 544 | -10/Subcaves | Found Cargo Legs 547 | -10/Subcaves | Attached Cargo Legs, gained temporary slots: Utility x2 691 | -10/Subcaves | Core integrity fell below 50% 777 | -10/Subcaves | Learned location of Zion (-6) 779 | -10/Subcaves | Learned Materials stockpile data 836 | -10/Subcaves | Build established: Mutant 1300 | -10/Subcaves | Core integrity fell below 20% 1349 | -10/Subcaves | Discovered new exit (range 5) 1583 | -10/Subcaves | Disturbed a concealed Subdweller 1584 | -10/Subcaves | Destroyed by QE-B4V(R) with Subdweller Laser Last Messages --------------- Scrap Shield destroyed. 46-2KP(R) knocked back. 46-2KP(R) affixes Scrap Shield Fragment to Scrap Shield. Critical hit (Meltdown: +250). 46-2KP(R) destroyed. Acquired 24 matter. Acquired 40 matter. EXIT=FOUND Searching scrap... Found Mak. Sword. Found Flamer. Found 57 Matter. Acquired 57 matter. Dropped Mining Claw. Acquired Mak. Sword. QE-B4V(R) angrily emerges from the Twisted Machinery. QE-B4V(R): "UHTACK!" QE-B4V(R) knocked back. Map ----- +----------------------------------------------------+ | ? "## # ###??????????????#### #######?? | | ?? #" ##### ###??????????????## ######? | | # #### ###??????????????## ###? | | "# #" ###### ##??????????????## ### | | #### ###### ###??????????????### ### | | ???### #### ##??????????????#### ## | | ???### ### ###???????????????### ## | | ???## ### ##????????????????### ## | | ???## ### ###??????????????##### ## ### | | ???## #### ####????????????###### ## ### | | ???### # ### ####???????????### ##? | | ???### ###???????????## ##? | | ##### ##???????????## ##? | | ##### # ## ##???????????### ###? | | ## ######### ###???????????##### #####? | | # ################????????????######## #####?? | | # ####????#######???????????????###### #####?? | | # ###???????????????????????????#### #####? | | # ####????????????????????????#### #### | | ### #####???????????????????????### ### | | #### # ###???????????????????????## ## | | ?## ##?????????#########?????### ##### | | ?### #######?????#########?????#### ##### | | ? ###### ######?????##R$# ##??????####### ###? | | ??# ## ## ### ##?????##$& ##???????######## ##? | | ??????### ###????### @###????????????#### ### | | ???????## ###????#### /####????????????## ## | | ???????## # ###???## # ########?????????## ## | | ##?????## ## ###??### < < #####?????????### ## | | ######### ### ##??### # ??? ??? ### ## | | ######### ## ###### ### ##?????##### | | ### # ### ###### ### #"??????#### | | ## ## # ### ### # ?????????? | | ## ### ##### ????????????? | | ## ## ##### ???????????? | | ### #### ### ##????? ??????????? | | ############ ### #########??????? ??????????? | | ?#######?####################???????###??????????? | | ??????????############??????????????###??????????? | | ?????????????????????????????????????????????????? | | ?????????????????????????????????????????????????? | | ?????????????????????????????????????????????????? | | ?????????????????????????????????????????????????? | | ?????????????????????????????????????????????????? | | ?????????????????????????????????????????????????? | | ?????????????????????????????????????????????????? | | ?????????????????????????????????????????????????? | | ?????????????????????????????????????????????????? | | ?????????????????????????????????????????????????? | | ?????????????????????????????????????????????????? | +----------------------------------------------------+ Best States ------------- Heat Dissipation 25 Energy Generation 15 Energy Capacity 250 Matter Stores 300 Matter Capacity 300 Sight Range 16 Terrain Scan Density 10 Armor Coverage 800 Evasion (%) 62 Item Schematics ----------------- None Robot Schematics ------------------ None Fabricated ------------ Nothing Repaired ---------- Lgt. Ion Engine | 60% | -10/Materials EM Pulse Gun | 53% | -10/Materials Structural Scanner | 35% | -10/Materials Studied --------- None Alien Tech Used ----------------- None Achievements -------------- Survival Of The Most Covered Challenges ------------ None Game ------ Seed DroneGuidanceInjector Manual? 0 Play Time 00:27:53 Cumulative 63.8 hours Start 2026.06.23 @ 20:03:20 End 2026.06.24 @ 00:08:52 Sessions 2 Manual Loads 0 Difficulty Rogue Special Mode None Game No. 54 Rogue 20 Adventurer 34 Explorer 0 Win Type - Total 0 Types 0/0/0/0/0/0/0/0/0/0 Lore% 37 Gallery% 29 Achievement% 28 Wizard Run 0 Options --------- Layout 1 ASCII 0 Keyboard 1 Movement Numpad Keybinds 0 Fullscreen 1 Font 24/Smallcaps Map View 50x40 Zoom Use 0% Tactical HUD 0 Map Filters NONE Filters NONE Steam 1 RUN: b858cf82-31b1-48c1-8a35-165220d7fdc7